Cogmind - Beta 13 @@@ ROGUE MODE // 2024.03.31 @ 07:10:52 Player: BrainTooSmol Result: Destroyed by G-34 Mercenary with Small Laser Performance ------------- Evolutions (1) 500 Regions Visited (2) 400 Robots Destroyed (29) 145 Value Destroyed (705) 705 Prototype IDs (1) 20 Alien Tech Used (0) 0 Bonus (0) 0 TOTAL SCORE: 1770 Bonus ------- None Cogmind --------- Core Integrity 0/400 Matter 300/300 Energy 280/280 System Corruption 0% Temperature Cool (6) Movement Core (900) Ox17 Location -9/Materials Parts ------- > --- POWER (1) -------- Heavy Ion Engine > --- PROPULSION (2) --- (None) > --- UTILITY (4) ------ Heat Sink High-capacity Storage Unit Transport Network Coupler > --- WEAPON (2) ------- Hammer Hammer > --- INVENTORY (20) --- Heavy Ion Engine Aluminum Leg Improved Targeting Computer EM Pulse Gun Small Laser Grenade Launcher Grenade Launcher Hammer Peak State ------------ > --- POWER ------------ Heavy Ion Engine > --- PROPULSION ------- Compact Wheel Compact Wheel > --- UTILITY ---------- Heat Sink High-capacity Storage Unit Transport Network Coupler > --- WEAPON ----------- Hammer Hammer > --- INVENTORY -------- Heavy Ion Engine Aluminum Leg Improved Targeting Computer EM Pulse Gun Small Laser Grenade Launcher Grenade Launcher Hammer [Rating: 11] Favorites ----------- Power Ion Engine Engine Ion Engine Propulsion Compact Wheel Wheel Compact Wheel Utility High-capacity Storage Unit Device Heat Sink Storage High-capacity Storage Unit Processor Transport Network Coupler Protection Light Armor Plating Weapon Assault Rifle Energy Gun EM Pulse Gun Ballistic Gun Assault Rifle Impact Weapon Hammer Build | -11 -10 -9 ------- Run | Yrd Mat Mat Slots Evolved 2 | . . 2 Power . | . . . Propulsion . | . . . Utility 2 | . . 2 Weapon . | . . . Parts Attached 29 | 7 10 12 Power 6 | 1 2 3 Engine 6 | 1 2 3 Core . | . . . Reactor . | . . . Propulsion 7 | 2 3 2 Treads . | . . . Leg . | . . . Wheel 7 | 2 3 2 Hover . | . . . Flight . | . . . Utility 12 | 2 4 6 Device 2 | . 1 1 Storage 3 | 2 1 . Processor 1 | . . 1 Hackware . | . . . Protection 6 | . 2 4 Artifact . | . . . Weapon 4 | 2 1 1 Energy Gun 1 | 1 . . Energy Cannon . | . . . Ballistic Gun 1 | 1 . . Ballistic Cannon . | . . . Launcher . | . . . Special Weapon . | . . . Impact Weapon 2 | . 1 1 Slashing Weapon . | . . . Piercing Weapon . | . . . Special Melee Weapon . | . . . Unidentified Prototypes 1 | . . 1 Corrupted Parts 1 | 1 . . System Corruption 2 | 2 . . Parts Lost 15 | . 3 12 Power 3 | . 1 2 Propulsion 6 | . 2 4 Utility 5 | . . 5 Weapon 1 | . . 1 Highest Loss Streak 4 | . 3 4 To Critical Strikes . | . . . Average Slot Usage (%) 86 | . 96 67 Engine 11 | . 13 6 Wheel 22 | . 25 16 Device 1 | . 1 . Storage 15 | . 17 11 Processor 3 | . . 11 Protection 8 | . 7 10 Energy Gun 7 | . 10 . Ballistic Gun 9 | . 14 . Impact Weapon 6 | . 3 11 Naked Turns . | . . . Heaviest Build 55 | 19 54 55 Greatest Support 32 | 32 32 32 Greatest Overweight (x) 14 | . 3 14 Average Overweight (x) 1 | . 1 2 Largest Inventory Capacity 20 | 8 20 20 Average Capacity 18 | 7 18 20 Most Carried 14 | 4 14 13 Average Carried 7 | 1 7 9 Final Capacity 20 | 8 20 20 Final Carried 14 | 2 14 8 Class Distribution -------------------- 100% | Mutant Dominant Class ---------------- Mutant | -10/Materials Mutant | -9/Materials Resources | -11 -10 -9 ----------- Run | Yrd Mat Mat Matter Collected 563 | 261 229 73 Remotely . | . . . Salvage Created 1138 | 54 573 511 Parts 48 | 2 23 23 Haulers Intercepted 2 | . 1 1 Recyclers Shooed . | . . . Parts Field Recycled . | . . . Retrieved Matter . | . . . Parts Self-Destructed . | . . . Prevented . | . . . Kills | -11 -10 -9 ------- Run | Yrd Mat Mat Combat Hostiles Destroyed 19 | . 11 8 Melee 5 | . 1 4 Guns 9 | . 9 . Classes Destroyed 7 | 1 5 1 Worker 2 | . 1 1 Hauler 2 | . 1 1 Recycler 4 | 1 1 2 Watcher 2 | . 2 . Swarmer 3 | . 3 . Grunt 13 | . 8 5 Sentry 3 | . . 3 Best Kill Streak 3 | 1 3 3 Combat Bots Only 3 | . 3 3 Max Kills in Single Turn 1 | 1 1 1 Gunslinging . | . . . Exploded . | . . . Melee 1 | . 1 1 Uniques/NPCs Destroyed . | . . . Combat | -11 -10 -9 -------- Run | Yrd Mat Mat Hostile Shots Fired 182 | . 50 132 Missed 36 | . 14 22 Damage Taken 1807 | . 432 1375 Core 458 | . 57 401 Absorbed by Shields . | . . . Core Remaining (%) 88 | 100 77 . Volleys Fired 45 | 3 42 . Largest 2 | 2 2 . Hottest 60 | 60 60 . Shots Fired 91 | 6 85 . Gun 91 | 6 85 . Cannon . | . . . Launcher . | . . . Special . | . . . Kinetic 46 | 3 43 . Thermal . | . . . Explosive . | . . . Electromagnetic 45 | 3 42 . Robot Hit Streak 16 | 5 16 . Robot Miss Streak 4 | 1 4 . Penetration Max . | . . . Secondary Targets 2 | . 2 . Max Gunslinging Chain 1 | . 1 . Shots Hit Robots 108 | 5 50 53 Core Hits 32 | 2 23 7 Critical Kills 1 | . . 1 Critical Parts Destroyed 5 | . 2 3 Critical Strikes 6 | . 2 4 Smash 6 | . 2 4 Melee Attacks 86 | . 10 76 Impact 86 | . 10 76 Slashing . | . . . Piercing . | . . . Sneak Attacks 6 | . 1 5 Combat Hostiles 2 | . 1 1 Follow-up Attacks 1 | . . 1 Damage Inflicted 2233 | 68 817 1348 Guns 749 | 68 681 . Cannons . | . . . Explosions 56 | . 56 . Melee 1428 | . 80 1348 Ramming . | . . . Kinetic 298 | 43 255 . Thermal 56 | . 56 . Explosive . | . . . Electromagnetic 451 | 25 426 . Impact 1428 | . 80 1348 Slashing . | . . . Piercing . | . . . Highest Corruption 2 | 2 2 . Average Corruption 2 | 2 2 . Corruption Purged . | . . . Corruption Blocked . | . . . Effects 9 | . 9 . Message Errors 3 | . 3 . Heat Flow Errors 1 | . 1 . Parts Fused 1 | . 1 . Data Loss (minor) 3 | . 3 . Misfires 1 | . 1 . Overload Shots . | . . . Overflow Damage 189 | . 46 143 Projectiles . | . . . Explosions . | . . . Melee 189 | . 46 143 Knockbacks 6 | . 2 4 Impact 6 | . 2 4 Kinetic . | . . . Secondary . | . . . Self-Inflicted Damage 29 | . 29 . Shots 1 | . 1 . Rammed . | . . . Targets Rammed . | . . . Kicked . | . . . Crushed . | . . . Highest Temperature 135 | . 135 16 Average Temperature 40 | . 41 8 Received Heat Transfer 813 | . 180 633 Siege Activations . | . . . Robots Corrupted . | . . . Combat Hostiles . | . . . Parts Fried 8 | . 6 2 Impact Corruptions 11 | . 3 8 Robots Melted . | . . . Combat Hostiles . | . . . Parts Melted . | . . . Heat Transferred 100 | . 100 . Parts Sabotaged . | . . . Parts Stolen . | . . . Parts Stripped . | . . . Power Chain Reactions 1 | . 1 . Alert | -11 -10 -9 ------- Run | Yrd Mat Mat Peak Influence 206 | 5 184 206 Initial 27 | . 3 27 Average 90 | 3 98 86 Maximum Alert Level 1 | . . 1 Low Security (%) 99 | 100 100 97 Level 1 . | . . 2 Level 2 . | . . . Level 3 . | . . . Level 4 . | . . . Level 5 . | . . . High Security . | . . . Max Security . | . . . Squads Dispatched 5 | . 4 1 Investigation 3 | . 2 1 Extermination . | . . . Reinforcement 2 | . 2 . Assault . | . . . Garrison . | . . . Intercept . | . . . Searches Triggered . | . . . Construction Impeded . | . . . Haulers Reinforced . | . . . Active Scanning Responses . | . . . Cargo Convoy Interrupts . | . . . Stealth | -11 -10 -9 --------- Run | Yrd Mat Mat Distress Signals 3 | . 2 1 Communications Jammed . | . . . Distress Signals . | . . . Times Spotted 32 | . 19 13 Peak Tracking Total 5 | . 3 5 Tactical Retreats 4 | . 1 3 Traps | -11 -10 -9 ------- Run | Yrd Mat Mat Traps Triggered 2 | . 2 . Indirectly . | . . . Trap Hack Attempts . | . . . Triggered . | . . . Disarmed . | . . . Reprogrammed . | . . . Reused . | . . . Traps Extracted . | . . . Installed . | . . . Triggered . | . . . Machines | -11 -10 -9 ---------- Run | Yrd Mat Mat Machines Disabled 1 | . 1 . Max in Single Turn 1 | . 1 . Machines Repaired . | . . . Machines Dismantled . | . . . Machines Sabotaged . | . . . Overloaded Fab Kills . | . . . Hacking | -11 -10 -9 --------- Run | Yrd Mat Mat Machines Accessed 10 | . 9 1 Terminals 7 | . 6 1 Fabricators . | . . . Repair Stations 1 | . 1 . Recycling Units 2 | . 2 . Scanalyzers . | . . . Garrison Access . | . . . Total Hacks 23 | . 20 3 Successful 9 | . 9 . Failed 14 | . 11 3 Catastrophic . | . . . Database Lockouts . | . . . Manual 14 | . 11 3 Terminals 18 | . 15 3 Fabricators . | . . . Repair Stations 2 | . 2 . Recycling Units 3 | . 3 . Scanalyzers . | . . . Garrison Access . | . . . Terminal Hacks 3 | . 3 . Record 2 | . 2 . Recall Investigation 1 | . 1 . Fabricator Hacks . | . . . Repair Station Hacks 1 | . 1 . Scan Component 1 | . 1 . Recycling Unit Hacks 3 | . 3 . Report Inventory 2 | . 2 . Retrieve Components 1 | . 1 . Scanalyzer . | . . . Garrison Access Hacks . | . . . Unauthorized Hacks 2 | . 2 . Terminals 2 | . 2 . Assimilate 1 | . 1 . Botnet 1 | . 1 . Fabricators . | . . . Repair Stations . | . . . Recycling Units . | . . . Scanalyzers . | . . . Garrison Access . | . . . Data Cores Recovered . | . . . Used . | . . . Hacking Detections 8 | . 7 1 Full Trace Events 2 | . 1 1 Feedback Events . | . . . Feedback Blocked . | . . . Robot Schematics Acquired . | . . . Robots Built . | . . . Authchips . | . . . Time . | . . . Total Robot Build Rating . | . . . Part Schematics Acquired . | . . . Parts Built . | . . . Authchips . | . . . Time . | . . . Total Part Build Rating . | . . . Parts Repaired . | . . . Time . | . . . Parts Recycled . | . . . Recycled Matter . | . . . Retrieved Matter . | . . . Retrieved Components 2 | . 2 . Parts Scanalyzed . | . . . Part Schematics Acquired . | . . . Parts Damaged . | . . . Bothacking | -11 -10 -9 ------------ Run | Yrd Mat Mat Used RIF Installer . | . . . Robots Hacked . | . . . Non-combat . | . . . Combat . | . . . Robot Hacks Applied . | . . . Relay Couplers Released . | . . . Fabnet Peak Effective % . | . . . Robots Rewired . | . . . Allies Hacked . | . . . Hacks Repelled . | . . . Allies | -11 -10 -9 -------- Run | Yrd Mat Mat Total Allies . | . . . Largest Group . | . . . Highest-Rated Group . | . . . Highest-Rated Ally . | . . . Total Orders . | . . . Ally Attacks . | . . . Total Damage . | . . . Kills . | . . . Allies Corrupted . | . . . Allies Melted . | . . . Intel | -11 -10 -9 ------- Run | Yrd Mat Mat Robot Analysis Total . | . . . Derelict Logs Recovered . | . . . Drone Launches . | . . . Drone Recoveries . | . . . Exploration | -11 -10 -9 ------------- Run | Yrd Mat Mat Turns Passed 1474 | 68 949 457 Spaces Moved 737 | 47 575 115 Core 10 | 8 . 2 Treads . | . . . Legs . | . . . Wheels 727 | 39 575 113 Hover . | . . . Flight . | . . . Fastest Speed 50 | 50 100 115 Average Speed 117 | 91 115 138 Slowest Speed 750 | 100 145 750 Overloaded Moves . | . . . Propulsion Burnouts . | . . . Robots Hopped . | . . . Cave-ins Triggered . | . . . Exploration Rate (%) 37 | 3 96 13 Regions Visited 2 Branch Regions . Pre-discovered Areas . | . . . Known Exits Taken . | . . . Unknown Exits Taken 2 | 1 1 . Scrap Searched . | . . . Spaces Dug 11 | . 3 8 Terrain Destroyed 15 | . 7 8 Melee 11 | . 3 8 Projectile . | . . . AOE 4 | . 4 . Terrain Rammed . | . . . Walls Destroyed . | . . . Machines Disabled . | . . . Actions | -11 -10 -9 --------- Run | Yrd Mat Mat Total 1104 | 65 756 283 Wait 175 | . 101 74 Move 735 | 46 574 115 Hop . | . . . Pick Up 32 | 9 17 6 Fast Attach . | . . . Attach 23 | 7 4 12 Detach . | . . . Swap 6 | . 6 . Drop 3 | . 2 1 Fire 45 | 3 42 . Melee 85 | . 10 75 Ram . | . . . Kick . | . . . Crush . | . . . Escape Stasis . | . . . Rewire . | . . . Trap . | . . . Miscellaneous . | . . . Route ------- -11/Scrapyard -10/Materials (discovered 4 exits: *Mat x3 / [*Min]) -9/Materials History --------- Turn | Location | Event 12 | -11/Scrapyard | Discovered new exit (range 16) 69 | -11/Scrapyard | Entered Materials 321 | -10/Materials | Build established: Mutant 432 | -10/Materials | Discovered new exit (range 13) 465 | -10/Materials | Discovered new exit (range 9) 610 | -10/Materials | Lost 3 parts (1p2n) 641 | -10/Materials | Discovered new exit (range 16) 837 | -10/Materials | Discovered new exit (range 12) 1018 | -10/Materials | Entered another Materials area 1018 | -9/Materials | Evolved 2 slots: Utility x2 1130 | -9/Materials | Lost 4 parts (1p1n2u) 1220 | -9/Materials | Core integrity fell below 50% 1253 | -9/Materials | Lost 3 parts (1p1n1u) 1442 | -9/Materials | Core integrity fell below 20% 1475 | -9/Materials | Destroyed by G-34 Mercenary with Small Laser Last Messages --------------- 01401_ G-34 Mercenary suffers critical hit (Smash). 01401_ Destroyed Sml. Laser. 01401_ G-34 Mercenary system corrupted by crushing effect. 01401_ G-34 Mercenary knocked back. 01436_ Sneak attack on G-34 Mercenary. 01438_ G-34 Mercenary knocked back. 01451_ Broken Com. Wheel destroyed. 01454_ Destroyed Heat Sink. 01454_ G-34 Mercenary system corrupted by crushing effect. 01454_ Hammer follow-up attack on G-34 Mercenary. 01455_ G-34 Mercenary system terminally corrupted. 01460_ Com. Wheel destroyed. 01474_ G-34 Mercenary destroyed. 01475_ Acquired 14 matter. [Achievement: First Step to Greatness] Map ----- +----------------------------------------------------+ | ????????????????????????????????? ????# !##??? | | ????????????????????????????????# #???# !#??? | | ????????????????????????????????# #???# !#??? | | ????????????????????????????????# #???# !#??? | | ????????????????????????????????# #???# !#??? | | ???????????????????###??????????# #???# %!!##??? | | ???????????????????# ??????????# #???# ##"#???? | | ???????????????????? ??????????# #???# # ##???? | | ???????????????????## ########### ##### ## #???? | | ???????????????????# a # ##???? | | ???????????????????# ########## ##### ## #???? | | ???????????????????# #??????###+##### ####???? | | ???????????????????# #??????# [% # ## ##??? | | ???????????????????# #??????# + ###"#### | | ?????????????####### #??????# # ## ! | | ??????? #??????######### ## | | ?????????????####### #?????????????## ## | | ???????????????????# #?????????????# #! | | ???????????????????# #?????????????# # | | a??????????????????# *%############### + """ " | | ???????????????????#!![%*= [*[ # """ " | | ???????????????????# =###############=%% # """ " | | ???????????????????# ## =! ######+######### | | ??????????????????## *## ![ ## %% #????? | | ?????????##+####### * # # [! #????? | | ???????? #@""" ## [! #????? | | ???????? =g%""" "" ## [! #????? | | ???????? =#*""" T" ## #????? | | ?????????#######+## # "" ## """ #????? | | ??????????????????####### ## """ #????? | | ????????????????????????############ """ #????? | | ???????????????????????????????????# #????? | | ???????????????????????????????????##########????? | | ?????????????????????????????????????????????????? | | ???a?????????????????????????????????????????????? | | ?????????????????????????????????????????????????? | | ?????????????????????????????????????????????????? | | ?????????????????????????????????????????????????? | | ?????????????????????????????????????????????????? | | ?????????????????????????????????????????????????? | | ?????????????????????????????????????????????????? | | ?????????????????????????????????????????????????? | | ?????????????????????????????????????????????????? | | ?????????????????????????????????????????????????? | | ?????????????????????????????????????????????????? | | ?????????????????????????????????????????????????? | | ?????????????????????????????????????????????????? | | ?????????????????????????????????????????????????? | | ?????????????????????????????????????????????????? | | ?????????????????????????????????????????????????? | +----------------------------------------------------+ Best States ------------- Heat Dissipation 38 Energy Generation 14 Energy Capacity 280 Matter Stores 300 Matter Capacity 300 Sight Range 16 Terrain Scan Density 10 Armor Coverage 300 Evasion (%) 40 Item Schematics ----------------- None Robot Schematics ------------------ None Fabricated ------------ Nothing Alien Tech Used ----------------- None Achievements -------------- Crack Shot First Step to Greatness GoHome() Loot Pinata One Hack Too Far Part-time Excavator Risk Taker True Hacker Uninvited Guest Challenges ------------ None Game ------ Seed GyrokineticTargetCompressor Manual? 0 Play Time 00:29:19 Cumulative 0.9 hours Start 2024.03.31 @ 06:44:48 End 2024.03.31 @ 07:10:52 Sessions 1 Manual Loads 0 Difficulty Rogue Special Mode None Game No. 1 Rogue 1 Adventurer 0 Explorer 0 Win Type - Total 0 Types 0/0/0/0/0/0/0/0/0 Lore% 0 Gallery% 1 Achievement% 3 Wizard Run 0 Options --------- Layout 1 ASCII 0 Keyboard 0 Movement Mouse Keybinds 0 Fullscreen 1 Font 24/Smallcaps Map View 50x35 Zoom Use 0% Tactical HUD 1 Map Filters NONE Filters NONE Steam 1 RUN: cb09b128-cc93-4648-bf93-af9ec31605e8